Cogmind - Beta 17 @@@ ROGUE MODE // 2026.07.27 @ 22:40:35 Player: Momo Result: Destroyed by G-34 Mercenary with Small Laser Performance ------------- Evolutions (0) 0 Regions Visited (1) 200 Robots Destroyed (1) 5 Value Destroyed (26) 26 Prototype IDs (0) 0 Alien Tech Used (0) 0 Bonus (0) 0 TOTAL SCORE: 231 Bonus ------- None Cogmind --------- Core Integrity 0/250 Matter 198/300 Energy 100/100 System Corruption 0% Temperature Cool (12) Movement Rolling (100) Location -10/Materials Parts ------- > --- POWER (1) -------- (None) > --- PROPULSION (2) --- Compact Wheel > --- UTILITY (2) ------ Seismic Detector > --- WEAPON (2) ------- (None) > --- INVENTORY (5) ---- Small Storage Unit High-capacity Matter Pod (0) Peak State ------------ > --- POWER ------------ (None) > --- PROPULSION ------- Wheel Compact Wheel > --- UTILITY ---------- Seismic Detector > --- WEAPON ----------- Small Laser Small Laser > --- INVENTORY -------- Light Ion Engine Small Storage Unit [Rating: 5] Favorites ----------- Power Light Ion Engine Engine Light Ion Engine Propulsion Compact Wheel Wheel Compact Wheel Utility Seismic Detector Device Seismic Detector Weapon Small Laser Energy Gun Small Laser Special Weapon Mining Laser Build | -11 -10 ------- Run | Yrd Mat Slots Evolved . | . . Power . | . . Propulsion . | . . Utility . | . . Weapon . | . . Parts Attached 7 | 4 3 Power 1 | . 1 Engine 1 | . 1 Core . | . . Reactor . | . . Propulsion 2 | 2 . Treads . | . . Leg . | . . Wheel 2 | 2 . Hover . | . . Flight . | . . Utility 1 | . 1 Device 1 | . 1 Storage . | . . Processor . | . . Hackware . | . . Protection . | . . Artifact . | . . Weapon 3 | 2 1 Energy Gun 2 | 2 . Energy Cannon . | . . Ballistic Gun . | . . Ballistic Cannon . | . . Launcher . | . . Special Weapon 1 | . 1 Impact Weapon . | . . Slashing Weapon . | . . Piercing Weapon . | . . Special Melee Weapon . | . . Unidentified Prototypes . | . . Parts Lost 5 | . 5 Power 1 | . 1 Propulsion 1 | . 1 Utility . | . . Weapon 3 | . 3 Highest Loss Streak 5 | . 5 To Critical Strikes . | . . Average Backups 2 | . 3 Power . | . . Propulsion . | . . Utility 1 | . 1 Weapon . | . . Tool/Special . | . . Unused Backups 3 | . 3 Power . | . . Propulsion . | . . Utility 3 | . 3 Weapon . | . . Tool/Special . | . . Average Slot Usage (%) 67 | . 67 Engine 1 | . 1 Wheel 26 | . 26 Device 11 | . 11 Energy Gun 20 | . 20 Special Weapon 7 | . 7 Peak Build Rating 5 | 4 5 Average Rating 4 | 3 4 On Entrance 2 | . 4 Avg Prop Armor Cover (%) 14 | 16 14 Naked Turns . | . . Heaviest Build 6 | 2 6 Greatest Support 16 | 16 16 Greatest Overweight (x) . | . . Average Overweight (x) . | . . Largest Inventory Capacity 5 | 5 5 Average Capacity 5 | 5 5 Most Carried 4 | 2 4 Average Carried 3 | . 3 Final Capacity 5 | 5 5 Final Carried 2 | 2 2 Class Distribution -------------------- 100% | Mutant Dominant Class ---------------- Mutant | -10/Materials Resources | -11 -10 ----------- Run | Yrd Mat Matter Collected 153 | 152 1 Remotely . | . . Salvage Created 1 | . 1 Parts . | . . Haulers Intercepted . | . . Recyclers Shooed . | . . Parts Field Recycled . | . . Retrieved Matter . | . . Parts Self-Destructed . | . . Prevented . | . . Parts Restored . | . . Kills | -11 -10 ------- Run | Yrd Mat Combat Hostiles Destroyed . | . . Classes Destroyed 1 | . 1 Operator 1 | . 1 Best Kill Streak 1 | . 1 Combat Bots Only . | . . Max Kills in Single Turn 1 | . 1 Gunslinging . | . . Exploded . | . . Melee . | . . Uniques/NPCs Destroyed . | . . Combat | -11 -10 -------- Run | Yrd Mat Hostile Shots Fired 63 | . 63 Missed 21 | . 21 Hits 42 | . 42 Projectile 42 | . 42 Damage Taken 560 | . 560 Core 258 | . 258 Absorbed by Shields . | . . Core Remaining (%) 100 | 100 . Volleys Fired 15 | . 15 Largest 2 | . 2 Hottest 100 | . 100 Shots Fired 20 | . 20 Gun 11 | . 11 Cannon . | . . Launcher . | . . Special 9 | . 9 Kinetic . | . . Thermal 20 | . 20 Explosive . | . . Electromagnetic . | . . Robot Hit Streak 4 | . 4 Robot Miss Streak 1 | . 1 Penetration Max . | . . Secondary Targets . | . . Shots Hit Robots 6 | . 6 Core Hits 3 | . 3 Critical Kills . | . . Critical Parts Destroyed . | . . Critical Strikes . | . . Melee Attacks . | . . Impact . | . . Slashing . | . . Piercing . | . . Sneak Attacks . | . . Combat Hostiles . | . . Follow-up Attacks . | . . Damage Inflicted 97 | . 97 Guns 66 | . 66 Cannons . | . . Explosions 31 | . 31 Melee . | . . Ramming . | . . Kinetic . | . . Thermal 66 | . 66 Explosive 31 | . 31 Electromagnetic . | . . Impact . | . . Slashing . | . . Piercing . | . . Highest Corruption . | . . Average Corruption . | . . Corruption Purged . | . . Corruption Blocked . | . . Overload Shots . | . . Overflow Damage . | . . Projectiles . | . . Explosions . | . . Melee . | . . Knockbacks . | . . Impact . | . . Kinetic . | . . Secondary . | . . Self-Inflicted Damage 97 | . 97 Shots 1 | . 1 Rammed . | . . Targets Rammed . | . . Kicked . | . . Crushed . | . . Highest Temperature 31 | . 31 Average Temperature 8 | . 8 Received Heat Transfer 252 | . 252 Siege Activations . | . . Martial Activations . | . . Shielding Activations . | . . Robots Disrupted . | . . Combat Hostiles . | . . Robots Corrupted . | . . Combat Hostiles . | . . Parts Fried . | . . Impact Corruptions . | . . Robots Melted . | . . Combat Hostiles . | . . Parts Melted . | . . Heat Transferred 150 | . 150 Parts Sabotaged . | . . Parts Stolen . | . . Parts Stripped . | . . Power Chain Reactions . | . . Alert | -11 -10 ------- Run | Yrd Mat Maximum Alert Level . | . . Low Security (%) 100 | 100 100 Level 1 . | . . Level 2 . | . . Level 3 . | . . Level 4 . | . . Level 5 . | . . High Security . | . . Max Security . | . . Peak Influence 52 | . 52 Initial . | . . Average 25 | . 28 Influence Increases 123 | . 123 Destroy 0b10 Robot/NC 5 | . 5 Disable Machine 15 | . 15 Destroy Structure 43 | . 43 Lose Combat Pursuer 60 | . 60 Influence Decreases 123 | . 123 Time Decay 103 | . 103 Lost Part 20 | . 20 Squads Dispatched 3 | . 3 Investigation . | . . Extermination . | . . Reinforcement 3 | . 3 Assault . | . . Garrison . | . . Intercept . | . . Searches Triggered . | . . Construction Impeded . | . . Haulers Reinforced . | . . Active Scanning Responses . | . . Cargo Convoy Interrupts . | . . Stealth | -11 -10 --------- Run | Yrd Mat Distress Signals 1 | . 1 Communications Jammed . | . . Distress Signals . | . . Times Spotted 9 | . 9 Peak Tracking Total 4 | . 4 Tactical Retreats 3 | . 3 Traps | -11 -10 ------- Run | Yrd Mat Traps Triggered . | . . Indirectly . | . . Trap Hack Attempts . | . . Triggered . | . . Disarmed . | . . Reprogrammed . | . . Reused . | . . Traps Extracted . | . . Installed . | . . Triggered . | . . Machines | -11 -10 ---------- Run | Yrd Mat Machines Disabled 1 | . 1 Max in Single Turn 1 | . 1 Machines Repaired . | . . Machines Dismantled . | . . Machines Sabotaged . | . . Overloaded Fab Kills . | . . Hacking | -11 -10 --------- Run | Yrd Mat Machines Accessed 1 | . 1 Terminals 1 | . 1 Fabricators . | . . Repair Stations . | . . Recycling Units . | . . Scanalyzers . | . . Garrison Access . | . . Total Hacks 2 | . 2 Successful 1 | . 1 Failed 1 | . 1 Catastrophic . | . . Database Lockouts . | . . Manual 2 | . 2 Terminals 2 | . 2 Fabricators . | . . Repair Stations . | . . Recycling Units . | . . Scanalyzers . | . . Garrison Access . | . . Terminal Hacks 1 | . 1 Zone Layout 1 | . 1 Fabricator Hacks . | . . Repair Station Hacks . | . . Recycling Unit Hacks . | . . Scanalyzer . | . . Garrison Access Hacks . | . . Unauthorized Hacks . | . . Terminals . | . . Fabricators . | . . Repair Stations . | . . Recycling Units . | . . Scanalyzers . | . . Garrison Access . | . . Data Cores Recovered . | . . Used . | . . Hacking Detections 1 | . 1 Full Trace Events . | . . Feedback Events . | . . Feedback Blocked . | . . Robot Schematics Acquired . | . . Robots Built . | . . Authchips . | . . Time . | . . Total Robot Build Rating . | . . Part Schematics Acquired . | . . Parts Built . | . . Authchips . | . . Time . | . . Total Part Build Rating . | . . Part Studies Acquired . | . . Parts Repaired . | . . Time . | . . Parts Recycled . | . . Recycled Matter . | . . Retrieved Matter . | . . Retrieved Components . | . . Parts Scanalyzed . | . . Part Schematics Acquired . | . . Parts Damaged . | . . Bothacking | -11 -10 ------------ Run | Yrd Mat Used RIF Installer . | . . Robots Hacked . | . . Non-combat . | . . Combat . | . . Robot Hacks Applied . | . . Relay Couplers Released . | . . Fabnet Peak Effective % . | . . Robots Rewired . | . . Allies Hacked . | . . Hacks Repelled . | . . Allies | -11 -10 -------- Run | Yrd Mat Total Allies . | . . Largest Group . | . . Highest-Rated Group . | . . Highest-Rated Ally . | . . Total Orders . | . . Ally Attacks . | . . Total Damage . | . . Kills . | . . Allies Corrupted . | . . Allies Melted . | . . Intel | -11 -10 ------- Run | Yrd Mat Active Infowar (turns) 198 | . 198 Seismic 198 | . 198 Robot Analysis Total . | . . Derelict Logs Recovered . | . . Drone Launches . | . . Drone Recoveries . | . . Exploration | -11 -10 ------------- Run | Yrd Mat Turns Passed 255 | 22 233 Spaces Moved 270 | 26 244 Core 261 | 24 237 Treads . | . . Legs . | . . Wheels 9 | 2 7 Hover . | . . Flight . | . . Fastest Speed 50 | 50 50 Average Speed 51 | 53 51 Slowest Speed 100 | 100 100 Overloaded Moves . | . . Propulsion Burnouts . | . . Robots Hopped . | . . Potential Cave-ins . | . . Cave-ins Triggered . | . . Exploration Rate (%) 29 | 3 56 Regions Visited 1 Branch Regions . Pre-discovered Areas . | . . Known Exits Taken . | . . Unknown Exits Taken 1 | 1 . Scrap Searched . | . . Spaces Dug 6 | . 6 Terrain Destroyed 46 | . 46 Melee . | . . Projectile 6 | . 6 AOE 40 | . 40 Terrain Rammed . | . . Walls Destroyed . | . . Machines Disabled . | . . Actions | -11 -10 --------- Run | Yrd Mat Total 344 | 31 313 Wait 46 | . 46 Move 269 | 25 244 Hop . | . . Pick Up 5 | 2 3 Fast Attach 5 | 4 1 Attach 2 | . 2 Detach . | . . Swap 1 | . 1 Drop 1 | . 1 Fire 15 | . 15 Melee . | . . Ram . | . . Kick . | . . Crush . | . . Escape Stasis . | . . Rewire . | . . Trap . | . . Miscellaneous . | . . Route ------- -11/Scrapyard -10/Materials (discovered 2 exits: [*Mat] / [*Min]) History --------- Turn | Location | Event 9 | -11/Scrapyard | Discovered new exit (range 16) 23 | -11/Scrapyard | Entered Materials 144 | -10/Materials | Discovered new exit (range 13) 146 | -10/Materials | Discovered new exit (range 15) 214 | -10/Materials | Core integrity fell below 50% 252 | -10/Materials | Core integrity fell below 20% 256 | -10/Materials | Destroyed by G-34 Mercenary with Small Laser Last Messages --------------- SECURING TERMINAL." 00165_ O-16 Technician uses terminal to summon reinforcements. 00165_ ALERT: Hostiles spotted, dispatching reinforcements to Terminal M002. 00165_ O-16 Technician locks terminal. 00169_ T-07 Excavator is excavating. 00226_ Mining Laser destroyed. 00227_ Wheel destroyed. 00228_ T-07 Excavator is excavating. 00245_ K-01 Serf collects debris. 00245_ T-07 Excavator is excavating. 00248_ Lgt. Ion Engine destroyed. 00248_ K-01 Serf collects debris. 00249_ Sml. Laser destroyed. 00249_ T-07 Excavator is excavating. 00251_ K-01 Serf collects debris. 00252_ Sml. Laser destroyed. 00253_ T-07 Excavator is excavating. 00255_ K-01 Serf collects debris. Map ----- +----------------------------------------------------+ | | | | | | | | | | | | | | | | | | | | | ?########????????############? | | ?# """ ????????# ! # | | ?#" """ #???????# # | | ?#T """ #???????# # | | ?#" #???????#""" """ # | | ?# #???????#"T """ # | | ??? !#???????#""" """ # | | ?# ######??# # | | ?######+## ####+####+##+### | | ????# #?? | | ????# #?? | | ?###### ## k ##+######### #?? | | ?# # g ;##### ######+### | | ?# t gg ##???# ## | | ?# #????# ## | | ??# @ ###????# ## """"""" | | ??######??????# ## """"""" | | ??????????????# ## """"""" | | ??????????????# ## """"""" | | ??????????????######## """"""" | | ?????????????????????# | | ?????????????#########"####### | | ?????????????# "T" #???? | | ?????????????# #???? | | ?????????????# """ """ #???? | | ?????????????# """ """ #???? | | ?????????????# """ """ #???? | | ?????????????# #???? | | ?????????????# ! #???? | | ??????????#########+########## | | ??????????# | | ??????????# | | ??????????# """ """ """ "" | | ??????????# """ """ """ "" | | ??????????# """ """ """ "" | | ??????????# | | ??????##### | | ??????# | | ????????< ############+### | | ????????? ??????# | +----------------------------------------------------+ Best States ------------- Heat Dissipation 25 Energy Generation 10 Energy Capacity 125 Matter Stores 212 Matter Capacity 300 Sight Range 16 Terrain Scan Density 10 Evasion (%) 50 Item Schematics ----------------- None Robot Schematics ------------------ None Fabricated ------------ Nothing Repaired ---------- Nothing Studied --------- None Alien Tech Used ----------------- None Achievements -------------- None Challenges ------------ None Game ------ Seed TrackerArcsightSubcomponent Manual? 0 Play Time 00:04:55 Cumulative 474.4 hours Start 2026.07.27 @ 22:38:00 End 2026.07.27 @ 22:40:35 Sessions 1 Manual Loads 0 Difficulty Rogue Special Mode None Game No. 244 Rogue 240 Adventurer 0 Explorer 4 Win Type - Total 26 Types 9/1/2/6/1/2/3/1/1/0 Lore% 69 Gallery% 74 Achievement% 57 Wizard Run 0 Options --------- Layout 1 ASCII 0 Keyboard 0 Movement Mouse Keybinds 0 Fullscreen 1 Font 24/Smallcaps Map View 50x35 Zoom Use 0% Tactical HUD 1 Map Filters NONE Filters NONE Steam 1 RUN: fa04580c-fa2f-4b92-9ea2-2381aa01524f